bitfinex/quotes_ETHUSD_20241106
["timestamp","ask_amount","ask_price","bid_price","bid_amount"]
[1730865607213,0.08142373,2581.5,2581.2,3.87414]
[1730865607583,0.7946,2581.6,2581.3,3.874]
[1730865607984,0.08142373,2581.8,2581.4,3.87383]
[1730865608779,0.08142373,2581.8,2581.4,7.74755]
[1730865608982,0.08142373,2581.8,2581.6,3.87354]
[1730865609186,0.08142373,2581.8,2581.4,3.87372]
[1730865609187,0.08142373,2581.8,2581.5,3.87367]
[1730865609487,0.08142373,2581.8,2581.4,3.87372]
[1730865609693,0.08142373,2581.8,2581.3,3.87401]
[1730865609894,0.7946,2581.9,2581.0,0.7762]
[1730865610117,0.08142373,2581.8,2581.4,3.87372]
[1730865610418,0.7946,2581.9,2581.6,3.87343]
[1730865610619,0.87602373,2582.1,2581.6,3.87354]
[1730865610785,0.87602373,2582.1,2581.8,3.87326]
[1730865611192,0.08142373,2582.1,2581.8,3.87326]
[1730865611389,0.08142373,2582.2,2581.8,3.87326]
[1730865611627,0.60653602,2582.4,2582.1,3.87281]
[1730865611796,0.08142373,2582.5,2582.1,4.64901]
[1730865611997,0.08142373,2582.5,2582.2,3.87264]
[1730865612195,0.08142373,2582.5,2582.1,3.87281]
[1730865612196,0.08142373,2582.5,2582.3,3.87247]
[1730865612395,0.7946,2582.6,2582.3,7.74489]
[1730865612628,0.7946,2582.6,2581.8,0.7762]
[1730865612629,0.7946,2582.6,2581.9,3.87311]
[1730865612789,0.08142373,2582.5,2581.8,0.7762]
[1730865613125,0.08142373,2582.5,2582.2,3.87265]
[1730865613362,0.7946,2582.6,2582.3,3.87249]
[1730865613989,0.7946,2582.6,2582.3,3.87242]
[1730865614200,0.7946,2582.6,2582.1,3.87271]
[1730865614528,0.08142373,2582.5,2582.1,3.87271]
[1730865614826,0.7946,2582.6,2582.3,3.87251]
[1730865615128,0.7946,2582.6,2582.4,3.87235]
[1730865615825,0.83772373,2582.9,2582.4,3.87235]
[1730865616027,0.83772373,2582.9,2582.5,3.87216]
[1730865616326,0.83772373,2582.9,2582.5,3.87211]
[1730865616643,0.83772373,2582.9,2582.3,0.8066]
[1730865616644,0.83772373,2582.9,2582.4,3.87236]
[1730865616930,0.83772373,2582.9,2582.5,3.8721]
[1730865617106,0.83772373,2582.9,2582.5,7.74422]
[1730865617304,0.83772373,2582.9,2582.5,3.8721]
[1730865617524,0.83772373,2582.9,2582.5,3.87209]
[1730865617690,0.83772373,2582.9,2582.5,7.74419]
[1730865617893,0.83772373,2582.9,2582.5,3.87209]
[1730865618728,0.7563,2582.9,2582.5,3.87209]
[1730865618905,1.153962,2582.9,2582.5,3.87209]
[1730865619235,1.153962,2582.9,2582.3,3.87244]
[1730865619435,1.153962,2582.9,2582.3,3.87241]
[1730865619999,1.153962,2582.9,2582.5,3.87211]
[1730865620337,3.87179,2582.8,2582.1,45.0]
[1730865620567,0.6912,2582.9,2582.3,3.87241]
[1730865620697,0.6912,2582.9,2582.4,3.87227]
[1730865620900,0.6912,2582.9,2582.5,3.87212]
[1730865621297,0.6912,2582.9,2582.5,7.74424]
[1730865621537,0.6912,2582.9,2582.5,3.87212]
[1730865621757,0.6912,2582.9,2582.3,4.67901]
[1730865622045,0.6912,2582.9,2582.5,3.87221]
[1730865622401,0.6912,2582.9,2582.5,3.87212]
[1730865623101,0.6912,2582.9,2582.6,3.87205]
[1730865623424,0.6912,2582.9,2582.5,3.87212]
[1730865623640,0.7563,2583.2,2582.5,3.87212]
[1730865623847,5.53792958,2583.2,2582.6,3.87197]
[1730865624405,1.66675958,2583.2,2582.7,7.74368]
[1730865624638,1.66675958,2583.2,2582.7,3.87181]
[1730865626245,0.7563,2583.2,2582.8,3.87173]
[1730865627133,0.7563,2583.2,2582.7,3.87181]
[1730865627506,0.7563,2583.2,2582.9,3.87147]
[1730865627710,0.7563,2583.5,2583.0,3.87139]
[1730865628680,0.7563,2583.5,2582.9,3.87147]
[1730865628981,3.87088,2583.4,2582.8,0.8066]
[1730865629153,1.27961824,2583.5,2583.0,3.87144]
[1730865629767,5.15035824,2583.5,2582.8,8.54996]
[1730865629974,1.27961824,2583.5,2583.0,3.87144]
[1730865630146,0.7563,2583.5,2583.0,3.87144]
[1730865630667,0.7563,2583.5,2582.8,4.67824]
[1730865630868,0.7563,2583.5,2583.0,3.87146]
[1730865631280,0.7563,2583.5,2582.6,0.87373452]
[1730865631478,4.6271,2583.5,2582.8,3.87166]
[1730865631692,4.6271,2583.5,2582.8,3.87174]
[1730865631693,4.39421524,2583.4,2582.8,3.87174]
[1730865631868,0.52333524,2583.4,2582.9,3.87159]
[1730865632186,0.7563,2583.5,2582.9,3.87159]
[1730865632539,4.62711,2583.5,2582.9,3.87159]
[1730865632968,3.87104,2583.3,2582.7,7.74362]
[1730865633152,3.87104,2583.3,2582.8,3.87173]
[1730865633945,4.62711,2583.5,2582.8,3.87173]
[1730865634150,4.39429624,2583.4,2582.8,3.87173]
[1730865634773,4.39430624,2583.4,2582.8,3.87173]
[1730865634977,0.7641,2583.2,2582.6,0.09863452]
[1730865635162,0.60625242,2583.6,2582.2,0.56530162]
[1730865635163,3.87171,2582.9,2582.2,0.7751]
[1730865635493,1.151271,2582.8,2582.3,3.87249]
[1730865635659,1.151271,2582.8,2582.1,48.87277]
[1730865635850,1.151271,2582.8,2582.2,3.87264]
[1730865636171,1.151271,2582.8,2582.1,48.87277]
[1730865636172,1.151271,2582.8,2582.3,3.87247]
[1730865636349,1.151271,2582.8,2582.3,3.87241]
[1730865636553,0.7641,2582.8,2582.3,4.48396162]
[1730865636780,0.7641,2583.0,2582.6,3.87197]
[1730865637091,0.7641,2583.0,2582.5,3.87221]
[1730865637784,0.7641,2583.2,2582.4,0.7751]
[1730865638085,0.7641,2583.2,2582.8,3.87164]
[1730865638292,0.7641,2583.2,2582.7,3.87177]
[1730865638293,0.7641,2583.2,2582.9,3.87161]
[1730865638968,0.7641,2583.5,2583.2,3.87113]
[1730865639492,0.60625242,2583.6,2583.2,3.87113]
[1730865639648,0.60625242,2583.6,2583.1,3.87127]
[1730865640046,0.60625242,2583.6,2582.9,4.64664]
[1730865641269,0.7641,2583.5,2582.9,3.87154]
[1730865641469,5.15891624,2583.5,2582.9,7.74303]
[1730865641651,0.7641,2583.5,2582.9,3.87149]
[1730865641997,0.7641,2583.5,2583.0,3.87142]
[1730865643212,0.7641,2583.5,2582.8,3.87176]
[1730865643213,4.63491,2583.5,2582.8,3.87176]
[1730865644158,3.87088,2583.4,2582.8,3.87175]
[1730865644360,0.850579,2583.3,2582.7,3.87178]
[1730865644606,4.63491,2583.5,2582.9,3.87158]
[1730865644896,0.7641,2583.5,2582.9,3.87158]
[1730865645099,0.7641,2583.5,2583.1,3.8713]
[1730865646363,0.7641,2583.5,2583.2,3.87116]
[1730865646664,0.7641,2583.5,2583.1,7.74251]
[1730865646970,0.7641,2583.5,2583.1,3.87121]
[1730865647172,0.40425819,2583.4,2583.1,3.87121]
[1730865647576,0.40425819,2583.4,2583.1,7.74242]
[1730865647786,0.40425819,2583.4,2583.1,3.87121]
[1730865647987,0.40425819,2583.4,2583.1,7.74242]
[1730865648304,0.40425819,2583.4,2583.1,3.87121]
[1730865648661,0.40425819,2583.4,2583.1,7.74243]
[1730865648859,0.40425819,2583.4,2583.1,3.87121]
[1730865649101,0.40425819,2583.4,2583.1,7.74242]
[1730865649285,0.40425819,2583.4,2583.2,3.87116]
[1730865649682,0.40425819,2583.4,2583.3,3.87101]
[1730865649991,0.40425819,2583.4,2583.1,3.8712]
[1730865650502,0.40425819,2583.4,2583.3,3.87101]
[1730865652583,0.7561,2584.5,2584.3,3.86942]
[1730865653172,0.7561,2584.5,2584.1,3.86976]
[1730865653488,0.7561,2584.5,2583.9,3.87003]
[1730865653691,1.218627,2584.5,2583.9,3.87003]
[1730865654818,0.7561,2584.3,2583.8,3.87026]
[1730865654992,0.7561,2584.3,2583.9,3.87009]
[1730865655808,0.7561,2584.3,2584.0,3.86992]
[1730865656026,1.3061,2584.7,2583.5,7.74142]
[1730865656174,5.17532,2584.5,2583.5,0.09894466]
[1730865656375,1.3061,2584.5,2584.4,3.86937]
[1730865656576,0.7561,2584.5,2584.4,3.86937]
[1730865657085,0.7561,2585.0,2584.6,3.86906]
[1730865657289,1.16395146,2585.0,2584.5,3.86922]
[1730865657471,1.16395146,2585.0,2583.8,0.7875]
[1730865657472,1.16395146,2585.0,2584.3,3.86946]
[1730865657697,1.16395146,2585.0,2584.4,3.86937]
[1730865657869,0.7561,2585.0,2584.6,3.86905]
[1730865658693,0.7561,2585.0,2584.8,3.86876]
[1730865658874,0.7561,2585.0,2584.6,3.86906]
[1730865659700,0.7653,2585.3,2584.9,3.86855]
[1730865659879,0.7653,2585.3,2584.8,3.86873]
[1730865660079,0.05630604,2585.2,2584.8,3.86874]
[1730865660302,0.7653,2585.3,2584.8,3.86873]
[1730865660624,0.7653,2585.3,2584.8,0.77376]
[1730865660780,4.08187382,2585.6,2584.9,4.64469]
[1730865660981,4.08187382,2585.6,2585.1,3.8683]
[1730865661204,0.7653,2585.6,2585.1,3.8683]
[1730865661403,0.7653,2585.6,2584.8,0.77376]
[1730865661588,0.7653,2585.4,2584.7,3.86889]
[1730865661793,0.7653,2585.1,2584.7,3.86892]
[1730865662011,0.7653,2585.1,2584.9,3.86861]
[1730865662201,0.04221854,2585.0,2584.9,3.86861]
[1730865662403,0.7653,2585.1,2584.9,3.86861]
[1730865662603,0.7653,2585.6,2585.0,3.86844]
[1730865662791,0.7653,2585.6,2585.1,3.8682]
[1730865663404,0.7653,2585.6,2585.2,3.86816]
[1730865663601,4.63287,2585.6,2584.9,4.642313]
[1730865663802,4.63287,2585.6,2585.0,3.86845]
[1730865664136,1.62788861,2585.6,2584.9,3.86856]
[1730865664285,0.7653,2585.3,2584.7,3.86884]
[1730865664487,4.63334,2585.3,2584.7,3.86884]
[1730865664697,0.7653,2585.3,2584.2,0.7762]
[1730865665041,0.7653,2584.8,2584.1,3.86972]
[1730865665181,0.40392358,2585.3,2584.8,3.8687]
[1730865665382,0.40392358,2585.3,2584.1,0.57721829]
[1730865665383,0.7653,2585.1,2584.4,4.64554]
[1730865665621,0.7653,2585.1,2584.4,3.86934]
[1730865665847,3.86847,2585.0,2584.4,3.86934]
[1730865666032,0.7653,2585.1,2584.5,3.8692]
[1730865666242,0.7653,2585.1,2584.7,3.8689]
[1730865666474,0.7653,2585.1,2584.6,3.86892]
[1730865666681,0.03564181,2584.9,2584.6,3.86905]
[1730865666951,0.03562117,2584.8,2584.6,3.86905]
[1730865667164,0.7653,2585.1,2584.6,3.86905]
[1730865667452,0.03560052,2584.7,2584.6,3.86905]
[1730865667653,3.86793,2585.4,2584.6,3.86905]
[1730865667867,3.44155039,2585.7,2585.0,3.86844]
[1730865668014,0.1256361,2585.7,2585.5,3.86757]
[1730865668208,0.1256361,2585.7,2585.3,3.86797]
[1730865668453,0.7653,2585.6,2585.1,4.64449]
[1730865668751,0.7653,2585.6,2585.1,3.86821]
[1730865668937,0.1256361,2585.7,2585.3,3.86796]
[1730865669601,3.87026,2583.8,2582.8,0.7762]
[1730865669724,0.55,2583.4,2582.8,0.31653499]
[1730865669918,2.39384776,2583.4,2582.7,3.87191]
[1730865670225,1.46084776,2583.8,2583.7,3.87041]
[1730865670546,3.95892682,2584.5,2583.7,3.87039]
[1730865670547,2.79282239,2584.5,2583.7,3.87039]
[1730865670746,0.7653,2584.6,2583.7,3.87039]
[1730865670747,0.7653,2584.6,2583.9,4.64617]
[1730865671059,0.7653,2584.6,2583.5,5.64198772]
[1730865671060,4.63438,2584.6,2583.5,5.64198772]
[1730865671356,4.63438,2584.6,2583.5,5.64197772]
[1730865671357,0.55,2584.5,2583.5,5.64197772]
[1730865671667,0.518438,2584.4,2583.6,0.07739953]
[1730865671868,0.518438,2584.4,2583.5,0.7762]
[1730865672157,0.7653,2584.3,2583.5,3.87068]
[1730865672471,3.55812239,2584.6,2583.8,4.64635]
[1730865672756,3.86779,2585.5,2584.3,0.7762]
[1730865672757,2.79282239,2585.4,2584.3,0.7762]
[1730865672972,3.86802,2585.3,2584.4,4.96821347]
[1730865673125,0.7653,2585.2,2584.5,3.86919]
[1730865673531,3.55745606,2585.2,2584.0,0.7762]
[1730865673727,0.7653,2584.9,2584.4,3.86936]
[1730865673927,0.7653,2584.9,2584.0,4.64614]
[1730865674162,0.7653,2584.9,2584.3,3.86951]
[1730865674363,0.7653,2584.9,2584.1,3.86977]
[1730865674527,0.7653,2584.9,2584.2,3.86954]
[1730865674729,0.7653,2584.9,2584.3,3.94680918]
[1730865674980,0.1256361,2585.7,2584.8,0.7762]
[1730865675133,0.1256361,2585.7,2585.2,3.86807]
[1730865675479,0.1256361,2585.7,2585.1,3.86826]
[1730865676026,0.1256361,2585.7,2584.9,4.49286305]
[1730865676326,0.1256361,2585.7,2584.9,0.62426305]
[1730865676526,0.1256361,2585.7,2584.8,0.7762]
[1730865676527,0.1256361,2585.7,2585.5,3.86769]
[1730865676732,0.1256361,2585.7,2585.4,3.86786]
[1730865677388,0.1256361,2585.7,2585.2,3.86815]
[1730865677661,0.1256361,2585.7,2585.3,3.868]
[1730865678254,0.1256361,2585.7,2585.6,3.86757]
[1730865678450,7.4213042,2586.8,2586.0,3.86694]
[1730865678651,4.63108,2586.8,2586.0,3.86694]
[1730865679073,4.63108,2586.8,2585.9,3.86698]
[1730865679370,4.63108,2586.8,2586.1,3.86681]
[1730865679868,0.55,2586.7,2585.6,0.7762]
[1730865680031,0.7653,2586.4,2585.6,4.64377]
[1730865680240,0.463165,2586.3,2585.6,4.64377]
[1730865680544,0.463165,2586.3,2585.8,3.86714]
[1730865680746,3.86635,2586.5,2585.8,3.86714]
[1730865681272,5.18129,2586.7,2585.9,3.86708]
[1730865681565,5.18129,2586.7,2585.6,1.47905599]
[1730865681566,0.7653,2587.0,2586.1,0.7762]
[1730865681738,0.7653,2587.0,2586.5,3.86612]
[1730865681940,1.28890614,2587.0,2586.5,3.86612]
[1730865682364,3.86574,2586.9,2586.2,3.86667]
[1730865682572,3.86574,2586.9,2586.3,3.8665]
[1730865682742,3.86574,2586.9,2586.1,4.6429]
[1730865682943,1.28890614,2587.0,2586.3,3.86646]
[1730865682944,5.15450614,2587.0,2586.3,3.86646]
[1730865683158,0.51545061,2586.9,2586.4,3.86637]
[1730865683391,0.7653,2587.3,2586.7,3.86591]
[1730865683874,0.7653,2587.3,2586.5,3.86622]
[1730865684036,0.7653,2587.3,2586.8,3.86576]
[1730865684373,0.7653,2587.3,2586.6,3.86606]
[1730865684583,5.093404,2587.3,2586.6,3.86606]
[1730865684882,5.093404,2587.3,2586.1,0.7762]
[1730865684883,4.62993,2587.6,2586.9,3.8655]
[1730865685180,4.62993,2587.6,2586.0,3.86687]
[1730865685181,3.86473,2587.5,2586.5,3.86618]
[1730865685343,3.86522,2587.2,2586.5,3.86618]
[1730865685545,3.86504,2587.3,2586.7,3.86589]
[1730865685869,3.8649,2587.4,2586.5,3.86618]
[1730865686171,3.8652,2587.2,2586.5,3.86617]
[1730865686380,3.8652,2587.2,2586.6,3.86607]
[1730865686680,0.38652,2587.1,2586.6,3.86607]
[1730865686831,3.8655,2587.0,2586.3,4.64267]
[1730865687034,3.86588,2586.8,2586.2,3.86657]
[1730865687235,0.386588,2586.7,2586.3,3.86651]
[1730865687583,3.86569,2586.9,2586.3,3.86651]
[1730865688052,0.7653,2587.0,2586.0,0.7762]
[1730865688268,3.86583,2586.8,2586.1,3.86673]
[1730865688581,3.86583,2586.8,2586.2,3.86664]
[1730865688788,0.7791,2586.6,2586.2,3.86663]
[1730865688973,0.7791,2586.6,2586.3,3.86641]
[1730865689188,0.7791,2586.6,2586.0,3.86694]
[1730865689550,3.86647,2586.4,2585.8,3.86719]
[1730865689853,0.386647,2586.3,2585.8,3.86715]
[1730865690089,1.18075008,2587.3,2586.4,3.86633]
[1730865690375,0.7791,2587.3,2586.7,3.8658]
[1730865690562,0.7791,2587.6,2586.9,3.86562]
[1730865690773,4.64378,2587.6,2586.9,3.86562]
[1730865690984,0.850826,2587.5,2586.9,3.86562]
[1730865691166,3.86506,2587.3,2586.7,3.86588]
[1730865691363,0.850826,2587.5,2586.6,0.8275]
[1730865691572,0.7791,2587.6,2586.6,0.8275]
[1730865691799,4.64377,2587.6,2586.9,3.8655]
[1730865691974,4.64377,2587.6,2586.8,3.86568]
[1730865691975,4.64377,2587.6,2587.0,3.86544]
[1730865692304,0.7791,2587.6,2587.0,3.86544]
[1730865693071,0.7791,2587.6,2586.8,3.86572]
[1730865693276,3.86482,2587.5,2586.8,3.86572]
[1730865693492,3.86482,2587.5,2586.6,4.69351]
[1730865693493,3.86507,2587.3,2586.6,4.69351]
[1730865693668,3.86507,2587.3,2586.6,8.55948]
[1730865694002,0.464392,2587.4,2586.6,0.8275]
[1730865694209,0.7791,2587.3,2586.4,3.86637]
[1730865694518,3.86466,2587.6,2586.2,3.86665]
[1730865694519,3.86582,2586.8,2586.2,3.86665]
[1730865694675,0.7791,2586.7,2586.2,3.86665]
[1730865694881,4.64503,2586.7,2586.1,4.69431]
[1730865695201,0.7791,2586.7,2586.1,8.56102]
[1730865695398,0.7791,2586.7,2586.1,3.86671]
[1730865695399,3.86608,2586.6,2586.1,3.86671]
[1730865695573,0.7791,2586.7,2586.1,3.86671]
[1730865695810,0.7791,2586.7,2586.2,3.86664]
[1730865695977,0.7791,2586.7,2586.1,3.86671]
[1730865696730,0.7791,2586.7,2586.3,3.86651]
[1730865696883,0.7791,2586.7,2586.1,7.73346]
[1730865697217,0.464497,2586.6,2586.1,3.86672]
[1730865697425,4.64503,2586.7,2586.1,3.86672]
[1730865697988,0.7791,2586.7,2586.2,3.86657]
[1730865698230,0.7791,2586.7,2586.1,3.86672]
[1730865698399,4.64503,2586.7,2586.1,3.86672]
[1730865698723,0.7791,2587.0,2586.6,3.86598]
[1730865698895,0.38651,2587.2,2586.6,3.86598]
[1730865699492,4.25169,2587.2,2586.6,3.86598]
[1730865699700,4.25176,2587.2,2586.6,3.86598]
[1730865700031,0.7791,2587.7,2586.7,0.8275]
[1730865700183,4.26636566,2588.0,2587.3,3.865]
[1730865700382,0.7791,2588.1,2587.1,5.44643054]
[1730865700383,0.7791,2588.1,2587.6,3.86455]
[1730865700604,0.7791,2588.1,2587.4,4.69237]
[1730865700818,0.7791,2588.1,2587.5,3.86471]
[1730865701025,0.7791,2588.1,2587.4,3.86487]
[1730865701237,3.86401,2588.0,2587.2,3.86514]
[1730865701384,0.7791,2588.1,2587.5,5.44643054]
[1730865701695,0.7791,2588.4,2587.8,3.86428]
[1730865701904,0.7791,2588.4,2587.9,3.86411]
[1730865702087,0.7791,2588.4,2587.7,3.8643]
[1730865702286,0.60243571,2588.3,2587.4,3.86487]
[1730865702583,0.03912704,2588.2,2587.7,3.8643]
[1730865703092,0.03912704,2588.2,2587.8,3.86424]
[1730865703329,0.03912704,2588.2,2587.9,3.86409]
[1730865703529,0.1256361,2588.3,2587.9,3.86409]
[1730865704153,0.04238762,2588.2,2587.9,3.86409]
[1730865704360,0.04238762,2588.2,2587.7,3.86442]
[1730865704534,0.1256361,2588.3,2587.7,3.86442]
[1730865704713,0.04621296,2588.1,2587.3,3.86494]
[1730865704913,0.1256361,2588.3,2588.0,3.86398]
[1730865705659,0.04624104,2588.2,2588.1,3.94110168]
[1730865705840,0.1256361,2588.3,2588.2,3.86368]
[1730865706216,0.1256361,2588.3,2587.8,4.65304]
[1730865706548,3.86114,2590.0,2588.7,0.7888]
[1730865706860,0.83,2589.4,2588.7,3.86284]
[1730865707109,3.8625,2589.0,2588.3,3.86351]
[1730865707246,3.8625,2589.0,2587.6,9.37547924]
[1730865707247,0.82,2588.9,2588.1,3.86378]
[1730865707416,0.82,2588.9,2588.3,3.8635]
[1730865707756,0.82,2588.9,2588.4,3.86335]
[1730865708216,0.82,2588.9,2588.2,3.86355]
[1730865708535,0.46826,2588.8,2588.4,3.86338]
[1730865708943,0.82,2589.3,2588.6,5.50103924]
[1730865709149,0.82,2589.6,2589.2,3.86205]
[1730865709316,0.4034615,2589.7,2589.4,3.86188]
[1730865709526,0.82,2590.1,2589.5,5.50103924]
[1730865709840,0.82,2590.1,2589.5,3.86173]
[1730865709841,4.68097,2590.1,2589.5,3.86173]
[1730865710043,4.68097,2590.1,2589.4,3.86188]
[1730865710414,4.68097,2590.1,2589.2,4.248355]
[1730865710616,4.68097,2590.1,2589.5,3.86173]
[1730865711120,3.8606,2590.3,2589.2,0.386205]
[1730865711448,3.8606,2590.3,2589.5,3.86164]
[1730865711817,4.46497866,2590.5,2589.6,4.6504]
[1730865712061,0.82,2590.3,2589.8,3.86118]
[1730865712365,0.82,2590.3,2589.9,3.86113]
[1730865712513,3.86068,2590.3,2589.5,3.86164]
[1730865712917,3.86041,2590.4,2589.7,3.86142]
[1730865713255,3.86036,2590.5,2589.8,3.86129]
[1730865713460,3.76036,2590.5,2589.8,3.86129]
[1730865713656,0.376036,2590.4,2589.7,3.86142]
[1730865713816,0.1256361,2590.8,2590.2,0.7888]
[1730865714023,0.1256361,2590.8,2590.1,3.86073]
[1730865714331,3.86006,2590.7,2590.0,3.86097]
[1730865714555,0.1256361,2590.8,2589.9,3.8611]
[1730865714761,0.1256361,2590.8,2590.7,3.85996]
[1730865714968,1.42455221,2591.3,2590.7,3.85996]
[1730865714969,0.82,2592.3,2590.8,4.64861]
[1730865715116,0.61438282,2592.2,2590.9,3.85961]
[1730865715430,3.85865,2591.6,2590.8,0.7888]
[1730865715634,0.82,2591.5,2591.0,3.85949]
[1730865715848,1.4242865,2591.9,2591.0,3.85949]
[1730865716165,3.85832,2591.8,2591.2,3.85908]
[1730865716460,0.467832,2591.7,2591.0,3.85949]
[1730865716630,0.01,2592.2,2591.1,0.7888]
[1730865716838,3.85773,2592.2,2591.5,3.85862]
[1730865717052,0.82,2592.4,2591.9,3.85817]
[1730865717225,3.85777,2592.2,2591.6,3.85862]
[1730865717528,4.67746,2592.4,2591.6,3.85862]
[1730865717733,0.467746,2592.3,2591.8,3.8583]
[1730865718034,0.467746,2592.3,2591.6,3.85862]
[1730865718035,0.467746,2592.3,2591.7,3.85845]
[1730865718353,4.325326,2592.3,2591.6,3.85862]
[1730865718520,0.467746,2592.3,2591.7,3.85846]
[1730865718959,0.467746,2592.3,2591.5,3.85866]
[1730865719146,3.85787,2592.1,2591.5,3.85866]
[1730865719348,0.5145206,2592.2,2591.5,3.85874]
[1730865719554,4.3722906,2592.2,2591.5,3.85864]
[1730865719733,3.85822,2591.9,2590.7,6.28893924]
[1730865719939,4.61802,2592.1,2591.2,3.8591]
[1730865720148,3.85817,2591.9,2591.3,3.85905]
[1730865720346,0.51325406,2592.0,2591.3,3.85905]
[1730865720552,3.85877,2591.5,2590.4,0.65316466]
[1730865720822,0.7601,2591.9,2590.5,0.01]
[1730865721022,3.8586,2591.7,2590.9,3.85964]
[1730865721369,0.38586,2591.6,2591.2,3.85918]
[1730865721666,4.61828,2591.9,2591.2,3.85908]
[1730865721829,4.61828,2591.9,2591.1,3.85926]
[1730865722024,3.85848,2591.7,2590.9,3.85962]
[1730865722263,3.85848,2591.7,2590.7,4.64771]
[1730865722264,3.85887,2591.5,2590.7,4.64771]
[1730865722425,3.8592,2591.3,2590.5,3.8602]
[1730865722630,0.38592,2591.2,2590.7,3.85985]
[1730865722841,3.85883,2591.5,2590.9,3.85964]
[1730865723124,3.85849,2591.7,2590.9,3.85964]
[1730865723326,4.61834,2591.9,2591.1,3.85924]
[1730865723521,3.85843,2591.8,2591.1,3.85933]
[1730865723735,0.5145206,2592.2,2591.2,0.7879]
[1730865724061,0.5145206,2592.2,2591.6,3.8585]
[1730865724931,4.3722706,2592.2,2591.4,3.85886]
[1730865725121,3.85814,2592.0,2591.4,3.85886]
[1730865725463,4.3723006,2592.2,2591.4,3.8588]
[1730865725826,3.85789,2592.1,2591.2,5.27599392]
[1730865726027,0.43724106,2592.0,2591.4,3.85888]
[1730865726368,3.85732,2592.5,2591.8,3.85823]
[1730865726369,3.85739,2592.5,2591.8,3.85823]
[1730865726662,3.85739,2592.5,2591.7,3.85845]
[1730865726865,3.85797,2592.1,2591.4,9.35984924]
[1730865727027,3.85797,2592.1,2591.0,3.8594]
[1730865727028,3.85857,2591.7,2591.0,3.8594]
[1730865727367,3.85848,2591.7,2591.1,0.07716882]
[1730865727554,3.85916,2591.3,2590.6,6.28893924]
[1730865727737,3.85948,2591.1,2590.4,3.86029]
[1730865728146,0.385848,2591.6,2591.1,3.85935]
[1730865728457,3.7601,2592.3,2591.1,3.85935]
[1730865728458,0.01,2592.5,2591.2,3.85921]
[1730865728656,0.01,2592.5,2591.1,5.50103924]
[1730865728657,3.85805,2592.0,2591.3,3.85896]
[1730865728846,3.85776,2592.2,2591.4,3.93606428]
[1730865729039,3.85776,2592.2,2591.3,3.85896]
[1730865729249,3.85788,2592.1,2591.3,3.85896]
[1730865729431,0.771564,2592.0,2591.5,3.85865]
[1730865729630,3.85788,2592.1,2591.5,3.85865]
[1730865729860,7.71562,2592.2,2591.5,3.85865]
[1730865730033,3.85776,2592.2,2591.5,3.85865]
[1730865730244,3.85742,2592.4,2591.3,3.85902]
[1730865730444,3.85728,2592.5,2591.4,0.07716763]
[1730865730657,0.40175491,2592.7,2592.4,3.85731]
[1730865730835,3.85634,2593.2,2592.5,3.93429906]
[1730865731064,0.05089619,2592.6,2592.4,3.85731]
[1730865731260,3.85634,2593.2,2592.4,3.85731]
[1730865731261,3.85634,2593.2,2592.4,3.85738]
[1730865731468,3.85634,2593.2,2592.1,3.85784]
[1730865731469,0.05076148,2592.5,2592.1,3.85784]
[1730865731690,0.7601,2593.1,2592.0,3.85801]
[1730865731691,3.86696,2592.8,2592.0,3.85801]
[1730865731977,3.8567,2592.9,2592.2,3.8576]
[1730865732182,3.85664,2593.0,2592.2,3.8576]
[1730865732477,3.85656,2593.0,2592.2,3.8576]
[1730865732782,3.0,2593.0,2592.3,3.85755]
[1730865732962,0.761655,2593.0,2592.3,0.7879]
[1730865733144,0.7601,2593.3,2591.9,6.28893924]
[1730865733339,3.85682,2592.9,2592.1,3.85775]
[1730865733557,3.85682,2592.9,2592.2,3.85771]
[1730865733763,3.85682,2592.9,2592.1,3.85775]
[1730865733764,3.85698,2592.7,2592.1,3.85775]
[1730865733968,4.62836,2592.7,2591.9,4.64604]
[1730865734164,3.85682,2592.9,2591.9,0.7879]
[1730865734381,3.85682,2592.9,2592.2,3.85769]
[1730865734590,3.85682,2592.9,2592.3,0.07714153]
[1730865734801,3.85642,2593.1,2592.2,3.85765]
[1730865734958,4.6162,2593.3,2592.4,3.85731]
[1730865734959,3.85626,2593.2,2592.4,3.85731]
[1730865735156,3.85641,2593.1,2592.4,3.85731]
[1730865735485,3.85654,2593.0,2592.4,3.85731]
[1730865735653,3.85684,2592.8,2592.2,3.85769]
[1730865736292,3.85663,2593.0,2592.3,3.85756]
[1730865736595,3.85668,2592.9,2592.3,3.85756]
[1730865736762,3.85668,2592.9,2592.1,3.85784]
[1730865736963,0.7601,2592.7,2591.9,4.64597]
[1730865737229,0.7601,2592.7,2592.0,3.85788]
[1730865737493,0.7601,2592.7,2592.1,3.85785]
[1730865737790,0.7601,2592.7,2592.3,3.85757]
[1730865738001,0.7601,2592.7,2592.1,3.85785]
[1730865738555,0.43912074,2593.0,2592.0,3.85802]
[1730865738792,0.43912074,2593.0,2592.4,3.8573]
[1730865738994,0.0337811,2592.9,2592.5,3.93440595]
[1730865739198,3.9816361,2593.4,2592.5,3.85727]
[1730865739199,3.85625,2593.2,2592.5,3.85727]
[1730865739399,0.03376056,2592.8,2592.5,3.85727]
[1730865739625,3.9816361,2593.4,2592.0,0.50589798]
[1730865739909,3.9816361,2593.4,2592.6,3.85703]
[1730865739910,3.85625,2593.2,2592.6,3.85703]
[1730865740057,3.85678,2592.9,2592.3,9.35849924]
[1730865740259,0.7601,2593.0,2592.4,3.85741]
[1730865740462,3.85679,2592.9,2592.3,9.35849924]
[1730865740758,8.175589,2592.8,2592.1,4.64575]
[1730865741012,4.318629,2592.8,2592.2,3.85772]